fUSD/lending_fUSD_20240210
["ID","MTS","AMOUNT","RATE_DAILY","PERIOD"]
[313656223,1707544732609,-155.0,0.00022998,2]
[313656224,1707544732628,-301.78442798,0.00022998,2]
[313656225,1707544732648,-202.06301996,0.00022999,2]
[313656226,1707544732670,-157.52882761,0.00022999,2]
[313656227,1707544732690,-5401.59687054,0.00022999,2]
[313656228,1707544732712,-162.63,0.00022999,2]
[313656229,1707544732734,-555257.45186247,0.00023,2]
[313656230,1707544732755,-447488.48285868,0.00023,2]
[313656231,1707544845338,876.60554203,0.0002093,2]
[313656232,1707544849801,952.15298599,0.0002,2]
[313656233,1707544851193,404.01239338,0.0002231,2]
[313656235,1707544863307,876.60554203,0.0002093,2]
[313656236,1707544917533,810.19074066,0.0002093,2]
[313656237,1707544919259,284.1069284,0.0002093,2]
[313656238,1707544921846,500.0,0.0002093,2]
[313656239,1707544924382,535.66883484,0.0002093,2]
[313656240,1707544924626,888.30504813,0.0002093,2]
[313656241,1707544924709,271.77234569,0.0002093,2]
[313656242,1707544925647,869.67746725,0.0002093,2]
[313656243,1707544929624,2333.21880977,0.0002093,2]
[313656244,1707544933315,810.19074066,0.0002093,2]
[313656245,1707544937277,284.1069284,0.0002093,2]
[313656246,1707544939849,500.0,0.0002093,2]
[313656247,1707544943618,2337.27798592,0.0002093,2]
[313656248,1707544943655,869.67746725,0.0002093,2]
[313656249,1707544944389,535.66883484,0.0002093,2]
[313656250,1707544946629,888.30504813,0.0002093,2]
[313656251,1707544949367,331.41271451,0.0002093,2]
[313656252,1707544953222,810.61582788,0.0002093,2]
[313656253,1707544964638,874.45882566,0.0002093,2]
[313656254,1707545120729,177.43,0.00016712,2]
[313656258,1707545340733,263.08,0.00021053,2]
[313656260,1707545402314,150.0,0.00021053,2]
[313656261,1707545402482,150.0,0.00021053,2]
[313656262,1707545402673,150.0,0.00021053,2]
[313656263,1707545402849,150.0,0.00021053,2]
[313656264,1707545403090,150.0,0.00021053,2]
[313656265,1707545403205,150.0,0.00021053,2]
[313656266,1707545403408,150.0,0.00021053,2]
[313656267,1707545403573,150.0,0.00021053,2]
[313656268,1707545403750,150.0,0.00021053,2]
[313656269,1707545403919,150.0,0.00021053,2]
[313656270,1707545404101,150.0,0.00021053,2]
[313656271,1707545404292,150.0,0.00021053,2]
[313656272,1707545404466,150.0,0.00021053,2]
[313656273,1707545404702,150.0,0.00021053,2]
[313656274,1707545404849,150.0,0.00021053,2]
[313656275,1707545405025,150.0,0.00021053,2]
[313656276,1707545405216,150.0,0.00021053,2]
[313656277,1707545405686,150.0,0.00021053,2]
[313656278,1707545405753,150.0,0.00021053,2]
[313656279,1707545405816,150.0,0.00021053,2]
[313656280,1707545405929,150.0,0.00021053,2]
[313656281,1707545406174,150.0,0.00021053,2]
[313656282,1707545406303,150.0,0.00021053,2]
[313656283,1707545406480,150.0,0.00021053,2]
[313656284,1707545406642,150.0,0.00021053,2]
[313656285,1707545406880,150.0,0.00021053,2]
[313656286,1707545407015,150.0,0.00021053,2]
[313656287,1707545407190,150.0,0.00021053,2]
[313656288,1707545407375,150.0,0.00021053,2]
[313656289,1707545407532,150.0,0.00021053,2]
[313656290,1707545407957,150.0,0.00021053,2]
[313656291,1707545408121,150.0,0.00021053,2]
[313656292,1707545408293,270.06678524,0.00021053,2]
[313656308,1707545431546,-216.59900075,0.00022767,2]
[313656309,1707545431555,-3535.09849758,0.00022768,2]
[313656310,1707545431598,-385.33323618,0.00022768,2]
[313656311,1707545431711,-538.87507396,0.00022768,2]
[313656312,1707545431723,-176.45934803,0.000228,2]
[313656313,1707545431733,-171.41527608,0.000229,2]
[313656314,1707545431743,-273.96,0.00022947,2]
[313656315,1707545431752,-6564.29030193,0.00022997,2]
[313656316,1707545431766,-6611.94379561,0.00022997,2]
[313656317,1707545431775,-641.84696201,0.00022998,2]
[313656318,1707545431786,-326.35988792,0.00022998,2]
[313656319,1707545431797,-2179.36001209,0.00022998,2]
[313656320,1707545431807,-157.021,0.00022998,2]
[313656321,1707545431817,-157.021,0.00022998,2]
[313656322,1707545431826,-157.021,0.00022998,2]
[313656323,1707545431836,-157.021,0.00022998,2]
[313656324,1707545431845,-157.021,0.00022998,2]
[313656325,1707545431855,-157.021,0.00022998,2]
[313656326,1707545431865,-157.021,0.00022998,2]
[313656327,1707545431874,-157.021,0.00022998,2]
[313656328,1707545431884,-157.021,0.00022998,2]
[313656329,1707545431893,-157.021,0.00022998,2]
[313656330,1707545431903,-42225.39508229,0.00022998,2]
[313656331,1707545431913,-721.0274948,0.00022999,2]
[313656332,1707545431948,-305.40820479,0.00022999,2]
[313656333,1707545431961,-7.26490927,0.00022999,2]
[313656334,1707545431971,-343.01488049,0.00022999,2]
[313656335,1707545431981,-1784.96856605,0.00022999,2]
[313656336,1707545431999,-98270.0648696,0.00022999,2]
[313656337,1707545432010,-7879.113,0.00022999,2]
[313656338,1707545432019,-177065.24643033,0.00023,2]
[313656339,1707545432031,-6961.16508226,0.00023,2]
[313656340,1707545432049,-562.43544538,0.00023,2]
[313656341,1707545432062,-1101.33165979,0.00023,2]
[313656345,1707545437585,-553.19678644,0.00023,2]
[313656346,1707545437598,-40328.55932657,0.00023,2]
[313656347,1707545437610,-320.02750419,0.00023,2]
[313656348,1707545437624,-797.04011047,0.00023,2]
[313656349,1707545437642,-1464.98189673,0.00023,2]
[313656350,1707545437654,-2392.36310128,0.00023,2]
[313656351,1707545437666,-1028.75990559,0.00023,2]
[313656352,1707545437691,-664.88675611,0.00023,2]
[313656353,1707545437704,-289.4002629,0.00023,2]
[313656354,1707545437718,-1766.9567314,0.00023,2]
[313656355,1707545437732,-16581.3508033,0.00023,2]
[313656356,1707545437807,-11046.16451598,0.00023,2]
[313656357,1707545437820,-52070.00845172,0.00023,2]
[313656358,1707545437911,-2081.89944399,0.00023,2]
[313656359,1707545437922,-730.50066288,0.00023,2]
[313656360,1707545437977,-2072.13744929,0.00023,2]
[313656363,1707545440174,-639.14654176,0.00023,2]
[313656364,1707545440287,-342.58214124,0.00023,2]
[313656365,1707545440299,-619.40917737,0.00023,2]
[313656366,1707545440341,-353.65999998,0.00023,2]
[313656367,1707545440451,-3303.94373171,0.00023,2]
[313656387,1707545443206,-9252.27534733,0.00023,2]
[313656388,1707545443217,-653.03474555,0.00023,2]
[313656389,1707545443247,-601.317464,0.00023,2]
[313656390,1707545443258,-1425.81963666,0.00023,2]
[313656391,1707545443270,-543.33974753,0.00023,2]
[313656392,1707545443294,-507.21523759,0.00023,2]
[313656393,1707545443303,-468.02838644,0.00023,2]
[313656394,1707545443313,-277.28074377,0.00023,2]
[313656395,1707545443322,-155.0,0.00023,2]
[313656396,1707545443332,-200.0,0.00023034,2]
[313656397,1707545443341,-250.0,0.00023046,2]
[313656398,1707545443351,-2000.0,0.0002308,2]
[313656399,1707545443361,-165.37,0.00023163,2]
[313656400,1707545443370,-162.63,0.00023171,2]
[313656401,1707545443380,-158.63757379,0.0002319,2]
[313656402,1707545443389,-177.25,0.00023316,2]
[313656403,1707545443398,-263.08,0.00023317,2]
[313656404,1707545443407,-158.63757379,0.00023386,2]
[313656405,1707545443417,-380.9576981,0.00023391,2]
[313656406,1707545443456,156.71766194,0.00021053,2]
[313656407,1707545445573,-316.75908617,0.00023391,2]
[313656416,1707545446053,-302.27321573,0.00023391,2]
[313656417,1707545446062,-158.63757379,0.00023581,2]
[313656418,1707545446071,-177.16,0.00023657,2]
[313656419,1707545446080,-158.63757379,0.00023776,2]
[313656420,1707545446090,-158.63757379,0.00023971,2]
[313656421,1707545446099,-158.63757379,0.00024167,2]
[313656422,1707545446108,-177.16,0.00024205,2]
[313656423,1707545446117,-158.63757379,0.00024362,2]
[313656424,1707545446126,-155.53,0.00024384,2]
[313656425,1707545446135,-381.5,0.00024384,2]
[313656426,1707545446144,-167.22,0.00024495,2]
[313656427,1707545446153,-55555.0,0.00024557,2]
[313656428,1707545446162,-158.63757379,0.00024557,2]
[313656429,1707545446172,-2181.85772249,0.00024557,2]
[313656430,1707545446181,-168.13605804,0.00024557,2]
[313656431,1707545446192,-528.78755996,0.00024557,2]
[313656432,1707545446204,-273.96,0.00024591,2]
[313656433,1707545446214,-434.5756205,0.00024647,2]
[313656434,1707545446224,-157.021,0.00024653,2]
[313656435,1707545446233,-157.021,0.00024653,2]
[313656436,1707545446244,-157.021,0.00024653,2]
[313656437,1707545446254,-157.021,0.00024653,2]
[313656438,1707545446264,-157.021,0.00024653,2]
[313656439,1707545446274,-157.021,0.00024653,2]
[313656440,1707545446285,-157.021,0.00024653,2]
[313656441,1707545446294,-157.021,0.00024653,2]
[313656442,1707545446304,-157.021,0.00024653,2]
[313656443,1707545446313,-155.021,0.00024653,2]
[313656444,1707545446323,-151.021,0.00024653,2]
[313656445,1707545446333,-195.2452202,0.00024654,2]
[313656446,1707545446343,-1123.27672638,0.00024655,2]
[313656447,1707545446353,-1001.5277416,0.00024655,5]
[313656448,1707545446362,-500.0,0.00024656,2]
[313656449,1707545446372,-500.0,0.00024656,2]
[313656450,1707545446382,-210.73957294,0.00024656,2]
[313656451,1707545446391,-500.0,0.00024656,2]
[313656452,1707545446401,-500.0,0.00024656,2]
[313656453,1707545446411,-500.0,0.00024656,2]
[313656454,1707545446420,-422.18085118,0.00024656,2]
[313656455,1707545446430,-500.0,0.00024656,2]
[313656456,1707545446439,-500.0,0.00024656,2]
[313656457,1707545446448,-158.02009457,0.00024656,2]
[313656458,1707545446457,-512.31957026,0.00024657,2]
[313656459,1707545446467,-500.0,0.00024657,2]
[313656460,1707545446476,-504.36967194,0.00024657,2]
[313656461,1707545446485,-500.0,0.00024657,2]
[313656462,1707545446494,-500.0,0.00024657,2]
[313656463,1707545446512,-1000.0,0.00024657,2]
[313656464,1707545446525,-500.0,0.00024657,2]
[313656465,1707545446535,-500.0,0.00024657,2]
[313656466,1707545446546,-500.0,0.00024657,2]
[313656467,1707545446556,-500.0,0.00024657,2]
[313656468,1707545446566,-500.0,0.00024657,2]
[313656469,1707545446576,-500.0,0.00024657,2]
[313656470,1707545446585,-566.65185928,0.00024657,2]
[313656471,1707545446595,-500.0,0.00024657,2]
[313656472,1707545446604,-500.0,0.00024657,2]
[313656473,1707545446614,-287.66085412,0.00024657,2]
[313656474,1707545446624,-560.7765185,0.00024657,2]
[313656475,1707545446633,-500.0,0.00024657,2]
[313656476,1707545446642,-500.0,0.00024657,2]
[313656477,1707545446652,-500.0,0.00024657,2]
[313656478,1707545446662,-500.0,0.00024657,2]
[313656479,1707545446672,-579.72700514,0.00024657,2]
[313656480,1707545446682,-601.26,0.00024657,2]
[313656481,1707545446691,-500.0,0.00024657,2]
[313656482,1707545446701,-500.0,0.00024657,2]
[313656483,1707545446712,-527.5507515,0.00024657,2]
[313656484,1707545446723,-500.0,0.00024657,2]
[313656485,1707545446733,-500.0,0.00024657,2]
[313656486,1707545446742,-500.0,0.00024657,2]
[313656487,1707545446753,-500.0,0.00024657,2]
[313656488,1707545446765,-361.60063721,0.00024657,2]
[313656489,1707545446775,-500.0,0.00024657,2]
[313656490,1707545446785,-512.53258443,0.00024657,2]
[313656491,1707545446794,-500.0,0.00024657,2]
[313656492,1707545446803,-500.0,0.00024657,2]
[313656493,1707545446813,-500.0,0.00024657,2]
[313656494,1707545446823,-500.0,0.00024657,2]
[313656495,1707545446832,-500.0,0.00024657,2]
[313656496,1707545446841,-500.0,0.00024657,2]
[313656497,1707545446851,-500.0,0.00024657,2]
[313656498,1707545446861,-500.0,0.00024657,2]
[313656499,1707545446871,-500.0,0.00024657,2]
[313656500,1707545446880,-500.0,0.00024657,2]
[313656501,1707545446889,-500.0,0.00024657,2]
[313656502,1707545446899,-512.23151072,0.00024657,2]
[313656503,1707545446908,-500.0,0.00024657,2]
[313656504,1707545446918,-500.0,0.00024657,2]
[313656505,1707545446927,-511.44511551,0.00024657,2]
[313656506,1707545446937,-500.0,0.00024657,2]
[313656507,1707545446947,-500.0,0.00024657,2]
[313656508,1707545446957,-534.85359897,0.00024657,2]
[313656509,1707545446967,-500.0,0.00024657,2]
[313656510,1707545446976,-500.0,0.00024657,2]
[313656511,1707545446985,-500.0,0.00024657,2]
[313656512,1707545446995,-518.85064901,0.00024657,2]
[313656513,1707545447006,-500.0,0.00024657,2]
[313656514,1707545447017,-500.0,0.00024657,2]
[313656515,1707545447027,-500.0,0.00024657,2]
[313656516,1707545447036,-500.0,0.00024657,2]
[313656517,1707545447046,-500.0,0.00024657,2]
[313656518,1707545447056,-500.0,0.00024657,2]
[313656519,1707545447065,-500.0,0.00024657,2]
[313656520,1707545447074,-510.75596947,0.00024657,2]
[313656521,1707545447084,-500.0,0.00024657,2]
[313656522,1707545447094,-500.0,0.00024657,2]
[313656523,1707545447103,-500.0,0.00024657,2]
[313656524,1707545447113,-500.0,0.00024657,2]
[313656525,1707545447122,-500.0,0.00024657,2]
[313656526,1707545447131,-500.0,0.00024657,2]
[313656527,1707545447140,-500.0,0.00024657,2]
[313656528,1707545447150,-500.0,0.00024657,2]
[313656529,1707545447159,-500.0,0.00024657,2]
[313656530,1707545447169,-500.0,0.00024657,2]
[313656531,1707545447178,-500.0,0.00024657,2]
[313656532,1707545447188,-500.0,0.00024657,2]
[313656533,1707545447198,-500.0,0.00024657,2]
[313656534,1707545447211,-500.0,0.00024657,2]
[313656535,1707545447220,-500.0,0.00024657,2]
[313656536,1707545447230,-500.0,0.00024657,2]
[313656537,1707545447241,-500.0,0.00024657,2]
[313656538,1707545447251,-515.13537514,0.00024657,2]
[313656539,1707545447262,-500.0,0.00024657,2]
[313656540,1707545447272,-500.0,0.00024657,2]
[313656541,1707545447281,-163.53809867,0.00024657,2]
[313656542,1707545447291,-500.0,0.00024657,2]
[313656543,1707545447301,-500.0,0.00024657,2]
[313656544,1707545447311,-500.0,0.00024657,2]
[313656545,1707545447321,-500.0,0.00024657,2]
[313656546,1707545447330,-511.12454196,0.00024657,2]
[313656547,1707545447340,-889.97,0.00024657,2]
[313656548,1707545447350,-500.0,0.00024657,2]
[313656549,1707545447360,-500.0,0.00024657,2]
[313656550,1707545447371,-551.74517958,0.00024657,2]
[313656551,1707545447381,-500.0,0.00024657,2]
[313656552,1707545447391,-500.0,0.00024657,2]
[313656553,1707545447400,-500.0,0.00024657,2]
[313656554,1707545447410,-500.0,0.00024657,2]
[313656555,1707545447420,-500.0,0.00024657,2]
[313656556,1707545447429,-651.29,0.00024657,2]
[313656557,1707545447439,-500.0,0.00024657,2]
[313656558,1707545447449,-500.0,0.00024657,2]
[313656559,1707545447459,-500.0,0.00024657,2]
[313656560,1707545447469,-500.0,0.00024657,2]
[313656561,1707545447478,-303.04595797,0.00024657,2]
[313656562,1707545447488,-500.0,0.00024657,2]
[313656563,1707545447498,-500.0,0.00024657,2]
[313656564,1707545447507,-500.0,0.00024657,2]
[313656565,1707545447517,-500.0,0.00024657,2]
[313656566,1707545447526,-500.0,0.00024657,2]
[313656567,1707545447536,-500.0,0.00024657,2]
[313656568,1707545447545,-500.0,0.00024657,2]
[313656569,1707545447555,-500.0,0.00024657,2]
[313656570,1707545447565,-500.0,0.00024657,2]
[313656571,1707545447574,-500.0,0.00024657,2]
[313656572,1707545447583,-500.0,0.00024657,2]
[313656573,1707545447593,-500.0,0.00024657,2]
[313656574,1707545447604,-500.0,0.00024657,2]
[313656575,1707545447614,-500.0,0.00024657,2]
[313656576,1707545447623,-500.0,0.00024657,2]
[313656577,1707545447633,-649.816259,0.00024657,2]
[313656578,1707545447642,-500.0,0.00024657,2]
[313656579,1707545447651,-500.0,0.00024657,2]
[313656580,1707545447661,-500.0,0.00024657,2]
[313656581,1707545447671,-500.0,0.00024657,2]
[313656582,1707545447680,-500.0,0.00024657,2]
[313656583,1707545447689,-500.0,0.00024657,2]
[313656584,1707545447699,-500.0,0.00024657,2]
[313656585,1707545447711,-526.2716841,0.00024657,2]
[313656586,1707545447723,-500.0,0.00024657,2]
[313656587,1707545447734,-577.92,0.00024657,2]
[313656588,1707545447745,-500.0,0.00024657,2]
[313656589,1707545447755,-500.0,0.00024657,2]
[313656590,1707545447766,-500.0,0.00024657,2]
[313656591,1707545447775,-500.0,0.00024657,2]
[313656592,1707545447785,-354.30284465,0.00024657,2]
[313656593,1707545447799,-500.0,0.00024657,2]
[313656594,1707545447809,-500.0,0.00024657,2]
[313656595,1707545447818,-500.0,0.00024657,2]
[313656596,1707545447827,-500.0,0.00024657,2]
[313656597,1707545447837,-500.0,0.00024657,2]
[313656598,1707545447846,-500.0,0.00024657,2]
[313656599,1707545447855,-500.0,0.00024657,2]
[313656600,1707545447865,-500.0,0.00024657,2]
[313656601,1707545447875,-532.5949996,0.00024657,2]
[313656602,1707545447884,-500.0,0.00024657,2]
[313656603,1707545447895,-500.0,0.00024657,2]
[313656604,1707545447904,-500.0,0.00024657,2]
[313656605,1707545447913,-500.0,0.00024657,2]
[313656606,1707545447924,-500.0,0.00024657,2]
[313656607,1707545447933,-522.40185531,0.00024657,2]
[313656608,1707545447943,-500.0,0.00024657,2]
[313656609,1707545447954,-336.1462253,0.00024657,2]
[313656610,1707545447963,-500.0,0.00024657,2]
[313656611,1707545447973,-500.0,0.00024657,2]
[313656612,1707545447983,-500.0,0.00024657,2]
[313656613,1707545447992,-500.0,0.00024657,2]
[313656614,1707545448001,-500.0,0.00024657,2]
[313656615,1707545448010,-500.0,0.00024657,2]
[313656616,1707545448020,-456.47041273,0.00024657,2]
[313656617,1707545448031,-724.43,0.00024657,2]
[313656618,1707545448041,-698.85,0.00024657,7]
[313656619,1707545448050,-500.0,0.00024657,2]
[313656620,1707545448060,-500.0,0.00024657,2]
[313656621,1707545448069,-514.16356677,0.00024657,2]
[313656622,1707545448078,-500.0,0.00024657,2]
[313656623,1707545448087,-500.0,0.00024657,2]
[313656624,1707545448097,-500.0,0.00024657,2]
[313656625,1707545448107,-500.0,0.00024657,2]
[313656626,1707545448117,-500.0,0.00024657,2]
[313656627,1707545448127,-500.0,0.00024657,2]
[313656628,1707545448137,-307.11915053,0.00024657,2]
[313656629,1707545448146,-500.0,0.00024657,2]
[313656630,1707545448156,-500.0,0.00024657,2]
[313656631,1707545448166,-500.0,0.00024657,2]
[313656632,1707545448175,-558.57790914,0.00024657,2]
[313656633,1707545448185,-500.0,0.00024657,2]
[313656634,1707545448194,-500.0,0.00024657,2]
[313656635,1707545448203,-500.0,0.00024657,2]
[313656636,1707545448212,-500.0,0.00024657,2]
[313656637,1707545448221,-974.06,0.00024657,2]
[313656638,1707545448230,-500.0,0.00024657,2]
[313656639,1707545448239,-727.19,0.00024657,2]
[313656640,1707545448249,-500.0,0.00024657,2]
[313656641,1707545448258,-500.0,0.00024657,2]
[313656642,1707545448267,-500.0,0.00024657,2]
[313656643,1707545448277,-500.0,0.00024657,2]
[313656644,1707545448287,-500.0,0.00024657,2]
[313656645,1707545448296,-3494.63,0.00024657,2]
[313656646,1707545448306,-519.10823224,0.00024657,2]
[313656647,1707545448315,-500.0,0.00024657,2]
[313656648,1707545448325,-500.0,0.00024657,2]
[313656649,1707545448334,-500.0,0.00024657,2]
[313656650,1707545448343,-500.0,0.00024657,2]
[313656651,1707545448353,-500.0,0.00024657,2]
[313656652,1707545448362,-500.0,0.00024657,2]
[313656653,1707545448371,-500.0,0.00024657,2]
[313656654,1707545448381,-500.0,0.00024657,2]
[313656655,1707545448391,-653.32,0.00024657,2]
[313656656,1707545448401,-443.50677091,0.00024657,2]
[313656657,1707545448410,-500.0,0.00024657,2]
[313656658,1707545448420,-546.83975775,0.00024657,2]
[313656659,1707545448430,-500.0,0.00024657,2]
[313656660,1707545448440,-500.0,0.00024657,2]
[313656661,1707545448449,-500.0,0.00024657,2]
[313656662,1707545448460,-516.87783409,0.00024657,2]
[313656663,1707545448470,-500.0,0.00024657,2]
[313656664,1707545448479,-647.71122149,0.00024657,2]
[313656665,1707545448489,-500.0,0.00024657,2]
[313656666,1707545448499,-500.0,0.00024657,2]
[313656667,1707545448509,-500.0,0.00024657,2]
[313656668,1707545448518,-500.0,0.00024657,2]
[313656669,1707545448528,-500.0,0.00024657,2]
[313656670,1707545448538,-500.0,0.00024657,2]
[313656671,1707545448547,-500.0,0.00024657,2]
[313656672,1707545448556,-500.0,0.00024657,2]
[313656673,1707545448566,-596.59,0.00024657,2]
[313656674,1707545448576,-500.0,0.00024657,2]
[313656675,1707545448585,-500.0,0.00024657,2]
[313656676,1707545448594,-588.00693756,0.00024657,2]
[313656677,1707545448604,-506.54982654,0.00024657,2]
[313656678,1707545448614,-488.27461503,0.00024657,2]
[313656679,1707545448623,-500.0,0.00024657,2]
[313656680,1707545448633,-500.0,0.00024657,2]
[313656681,1707545448643,-500.0,0.00024657,2]
[313656682,1707545448653,-500.0,0.00024657,2]
[313656683,1707545448662,-500.0,0.00024657,2]
[313656684,1707545448673,-500.0,0.00024657,2]
[313656685,1707545448683,-500.0,0.00024657,2]
[313656686,1707545448693,-500.0,0.00024657,2]
[313656687,1707545448702,-500.0,0.00024657,2]
[313656688,1707545448713,-500.0,0.00024657,2]
[313656689,1707545448725,-500.0,0.00024657,2]
[313656690,1707545448734,-500.0,0.00024657,2]
[313656691,1707545448744,-500.0,0.00024657,2]
[313656692,1707545448753,-500.0,0.00024657,2]
[313656693,1707545448764,-500.0,0.00024657,2]
[313656694,1707545448773,-500.0,0.00024657,2]
[313656695,1707545448783,-2129.9,0.00024657,2]
[313656696,1707545448793,-500.0,0.00024657,2]
[313656697,1707545448803,-500.0,0.00024657,2]
[313656698,1707545448812,-500.0,0.00024657,2]
[313656699,1707545448822,-508.81460422,0.00024657,2]
[313656700,1707545448831,-500.0,0.00024657,2]
[313656701,1707545448841,-500.0,0.00024657,2]
[313656702,1707545448850,-500.0,0.00024657,2]
[313656703,1707545448859,-500.0,0.00024657,2]
[313656704,1707545448869,-500.0,0.00024657,2]
[313656705,1707545448879,-500.0,0.00024657,2]
[313656706,1707545448888,-500.0,0.00024657,2]
[313656707,1707545448897,-500.0,0.00024657,2]
[313656708,1707545448906,-500.0,0.00024657,2]
[313656709,1707545448916,-500.0,0.00024657,2]
[313656710,1707545448925,-512.06135629,0.00024657,2]
[313656711,1707545448935,-500.0,0.00024657,2]
[313656712,1707545448945,-500.0,0.00024657,2]
[313656713,1707545448954,-500.0,0.00024657,2]
[313656714,1707545448963,-501.59,0.00024657,2]
[313656715,1707545448972,-500.0,0.00024657,2]
[313656716,1707545448982,-500.0,0.00024657,2]
[313656717,1707545448992,-500.0,0.00024657,2]
[313656718,1707545449002,-500.0,0.00024657,2]
[313656719,1707545449011,-517.76594257,0.00024657,2]
[313656720,1707545449020,-524.21346104,0.00024657,2]
[313656721,1707545449030,-500.0,0.00024657,2]
[313656722,1707545449039,-239.03925375,0.00024657,2]
[313656723,1707545449049,-861.38,0.00024657,2]
[313656724,1707545449059,-500.0,0.00024657,2]
[313656725,1707545449068,-522.00047501,0.00024657,2]
[313656726,1707545449077,-500.0,0.00024657,2]
[313656727,1707545449087,-228.79162047,0.00024657,2]
[313656728,1707545449096,-500.0,0.00024657,2]
[313656729,1707545449106,-500.0,0.00024657,2]
[313656730,1707545449115,-500.0,0.00024657,2]
[313656731,1707545449125,-500.0,0.00024657,2]
[313656732,1707545449134,-500.0,0.00024657,2]
[313656733,1707545449143,-500.0,0.00024657,2]
[313656734,1707545449153,-500.0,0.00024657,2]
[313656735,1707545449163,-500.0,0.00024657,2]
[313656736,1707545449172,-500.0,0.00024657,2]
[313656737,1707545449182,-500.0,0.00024657,2]
[313656738,1707545449191,-500.0,0.00024657,2]
[313656739,1707545449201,-500.0,0.00024657,2]
[313656740,1707545449212,-516.24120971,0.00024657,2]
[313656741,1707545449223,-256.78558013,0.00024657,2]
[313656742,1707545449232,-500.0,0.00024657,2]
[313656743,1707545449242,-500.0,0.00024657,2]
[313656744,1707545449252,-266.04408755,0.00024657,2]
[313656745,1707545449263,-500.0,0.00024657,2]
[313656746,1707545449272,-500.0,0.00024657,2]
[313656747,1707545449282,-500.0,0.00024657,2]
[313656748,1707545449291,-500.0,0.00024657,2]
[313656749,1707545449300,-500.0,0.00024657,2]
[313656750,1707545449309,-602.26699594,0.00024657,2]
[313656751,1707545449319,-500.0,0.00024657,2]
[313656752,1707545449328,-264.59526182,0.00024657,2]
[313656753,1707545449337,-500.0,0.00024657,2]
[313656754,1707545449347,-500.0,0.00024657,2]
[313656755,1707545449356,-500.0,0.00024657,2]
[313656756,1707545449366,-500.0,0.00024657,2]
[313656757,1707545449375,-500.0,0.00024657,2]
[313656758,1707545449385,-500.0,0.00024657,2]
[313656759,1707545449394,-500.0,0.00024657,2]
[313656760,1707545449404,-500.0,0.00024657,2]
[313656761,1707545449413,-500.0,0.00024657,2]
[313656762,1707545449422,-500.0,0.00024657,2]
[313656763,1707545449433,-500.0,0.00024657,2]
[313656764,1707545449442,-500.0,0.00024657,2]
[313656765,1707545449453,-500.0,0.00024657,2]
[313656766,1707545449463,-500.0,0.00024657,2]
[313656767,1707545449473,-503.63,0.00024657,2]
[313656768,1707545449483,-1842.92,0.00024657,2]
[313656769,1707545449493,-500.0,0.00024657,2]
[313656770,1707545449502,-318.99845171,0.00024657,2]
[313656771,1707545449513,-749.98,0.00024657,2]
[313656772,1707545449523,-500.0,0.00024657,2]
[313656773,1707545449533,-500.0,0.00024657,2]
[313656774,1707545449756,-1176.96,0.00024657,2]